{"text_format":"1","workbook":"xlsx","n_sheets":14,"sheets":["Comment remplir","Sommaire","BD","BGAD1","BGAD2","BGAD3","BGAD4","BGAD5","BGAD6","BGAD7","BGAD8","BGAD9","BGAD10","Liste"],"not_rendered":{"charts":0,"images":4,"macros":1,"external_links":0,"defined_names":23,"comments":0,"pivot_tables":1},"unopened":[],"bounds":{"document_bytes":16777216,"sheet_cells":100000,"rows_first":2000,"rows_last":500,"rows_between":2000,"halvings":0,"cell_chars":16384,"cell_head_chars":4096},"cells_cut":0,"cells_raw":0,"read":"whole","date_system":"1900"}

{"sheet":"Comment remplir","index":0,"n_rows":61,"n_cols":18,"rows_kept":61,"cut":false,"hidden":false,"merged":[]}
["Production du sommaire des déclarations de vidange des bois déclarés par les BGAd et les PRAU"]
[]
["Le représentant des BGA ne peut effectuer aucune modification aux volumes déclarés par les BGAd et les PRAU."]
[]
["Le représentant des BGA doit : "]
["1 -","Inscrire l'unité d'aménagement pour laquelle le sommaire est produit"]
["2 -","S'assurer d'intégrer les déclarations de vidange des bois d'une seule unité d'aménagement (UA)"]
["3 -","Copier les lignes de la feuille excel reçue présentant la déclaration de vidange des bois reçue de chacun des BGAd et PRAU (Une feuille par BGAD/PRAU, maximum 10 déclarations). "]
["4- ","Ajouter des lignes au besoin (voir note)"]
["5 -","Produire le sommaire des déclarations de vidange des bois en cliquant sur le bouton dans la feuille «SOMMAIRE»"]
["6 -","Appliquer la procédure de communication des données au ministre"]
[]
[]
[]
[]
[]
[]
[]
[]
[]
[]
[]
[]
[null,null,null,null,null,null,null,null,null,null,null,null,null,null,null,null,null,"    "]
[]
[]
[]
[]
[]
[]
[]
[]
[]
[]
[]
[]
[]
[]
[]
[]
[null,"Gestion des lignes ajoutées"]
[]
[null,"Le bouton \"Production du Sommaire de l'UA\" compile les déclarations, pour les lignes 1 à 51 de chaque fichier."]
[]
[null,"Si des lignes ont été ajoutées, il faudra modifier en conséquence la macro selon cette procédure."]
[]
["1-","Ouvrir le module de macros (AFFICHAGE/Macros/Afficher les macros)"]
[]
["2-","Sélectionner la macro \"sommaire\"' et cliquer sur Modifier"]
[]
["3-","Pour la feuille visée modifier les lignes en conséquence"]
[]
[null,"Ex: ","Sheets(\"BGAD3\").Select"]
[null,null,"    Rows(\"9:151\").Select",null,null,"(dans le cas où 100 lignes ont été ajoutées)"]
[null,null,"    Selection.Copy"]
[null,null,"    Sheets(\"BD\").Select"]
[null,null,"    Rows(\"300:300\").Select"]
[null,null,"    ActiveSheet.Paste"]
[]
[]
["4-","Enregistrer."]

{"sheet":"Sommaire","index":1,"n_rows":13,"n_cols":16,"rows_kept":13,"cut":false,"hidden":false,"merged":[[0,0,0,6],[4,0,4,6],[8,4,8,5]]}
["Sommaire des déclarations de vidange des bois - Tous clients"]
[]
["Année de récolte :","2019-2020"]
["Unité d'aménagement :"]
["Je déclare avoir obtenu les déclarations de vidange signées par un ingénieur forestier pour tous les secteurs récoltés de l’unité d’aménagement forestier mentionnés à cette déclaration. À l’exception des secteurs d’intervention ou des chantiers mentionnés ci-dessous comme non vidangés, je déclare que la vidange des autres secteurs est achevée dans l’unité d’aménagement visée par cette déclaration pour l’année d’exploitation visée."]
[null,null,null,null,null,null,null,null,null,null,null,null,null,null,null," MLNU SP seulement pour Client 999"]
["Nom du représentant des BGAs :"]
[]
["Signature :",null,null,"Date :"]
[]
["Somme de Volume estimé (m3)"]
["Numéro de secteur d'intervention \nou \nNom du chantier","Nom du BGA/PRAU détenteur du droit","Code d'essence","Qualité (pour les droits SQ/QI)","Total"]
["Total général"]

{"sheet":"BD","index":2,"n_rows":1,"n_cols":5,"rows_kept":1,"cut":false,"hidden":true,"merged":[[1330,0,1330,6],[895,0,895,6],[1045,0,1045,6],[1195,0,1195,6]]}
["Numéro de secteur d'intervention \nou \nNom du chantier","Nom du BGA/PRAU détenteur du droit","Code d'essence","Qualité (pour les droits SQ/QI)","Volume estimé (m3)"]

{"sheet":"BGAD1","index":3,"n_rows":72,"n_cols":5,"rows_kept":72,"cut":false,"hidden":false,"merged":[[0,0,0,4],[71,4,71,5],[67,0,67,5]]}
["Déclaration de vidange des secteurs récoltés par BGAd ou PRAU"]
[]
["Année de récolte :","2019-2020"]
["Unité d'aménagement :"]
["Nom Du BGAd :","160"]
[]
[null,"(insérer des lignes au besoin)"]
["Numéro de secteur d'intervention \nou \nNom du chantier","Nom du BGA/PRAU détenteur du droit","Code d'essence","Qualité (pour les droits SQ/QI)","Volume estimé (m3)"]
[]
[]
[]
[]
[]
[]
[]
[]
[]
[]
[]
[]
[]
[]
[]
[]
[]
[]
[]
[]
[]
[]
[]
[]
[]
[]
[]
[]
[]
[]
[]
[]
[]
[]
[]
[]
[]
[]
[]
[]
[]
[]
[]
[]
[]
[]
[]
[]
[]
[]
[]
[]
[]
[]
[]
[]
[]
[]
[]
["Je déclare que les volumes identifiés dans ce rapport sont encore en forêt ou, le cas échéant, que la vidange de ces secteurs est complété dans l’unité d’aménagement visée par cette déclaration pour l’année d’exploitation visée."]
[]
["Représentant du BGA :"]
[]
["Signature :",null,null,"Date :"]

{"sheet":"BGAD2","index":4,"n_rows":72,"n_cols":5,"rows_kept":72,"cut":false,"hidden":false,"merged":[[0,0,0,4],[71,4,71,5],[67,0,67,5]]}
["Déclaration de vidange des secteurs récoltés par BGAd ou PRAU"]
[]
["Année de récolte :","2019-2020"]
["Unité d'aménagement :"]
["Nom Du BGAd :"]
[]
[null,"(insérer des lignes au besoin)"]
["Numéro de secteur d'intervention \nou \nNom du chantier","Nom du BGA/PRAU détenteur du droit","Code d'essence","Qualité (pour les droits SQ/QI)","Volume estimé (m3)"]
[]
[]
[]
[]
[]
[]
[]
[]
[]
[]
[]
[]
[]
[]
[]
[]
[]
[]
[]
[]
[]
[]
[]
[]
[]
[]
[]
[]
[]
[]
[]
[]
[]
[]
[]
[]
[]
[]
[]
[]
[]
[]
[]
[]
[]
[]
[]
[]
[]
[]
[]
[]
[]
[]
[]
[]
[]
[]
[]
["Je déclare que les volumes identifiés dans ce rapport sont encore en forêt ou, le cas échéant, que la vidange de ces secteurs est complété dans l’unité d’aménagement visée par cette déclaration pour l’année d’exploitation visée."]
[]
["Représentant du BGA :"]
[]
["Signature :",null,null,"Date :"]

{"sheet":"BGAD3","index":5,"n_rows":72,"n_cols":5,"rows_kept":72,"cut":false,"hidden":false,"merged":[[0,0,0,4],[71,4,71,5],[67,0,67,5]]}
["Déclaration de vidange des secteurs récoltés par BGAd ou PRAU"]
[]
["Année de récolte :","2019-2020"]
["Unité d'aménagement :"]
["Nom Du BGAd :"]
[]
[null,"(insérer des lignes au besoin)"]
["Numéro de secteur d'intervention \nou \nNom du chantier","Nom du BGA/PRAU détenteur du droit","Code d'essence","Qualité (pour les droits SQ/QI)","Volume estimé (m3)"]
[]
[]
[]
[]
[]
[]
[]
[]
[]
[]
[]
[]
[]
[]
[]
[]
[]
[]
[]
[]
[]
[]
[]
[]
[]
[]
[]
[]
[]
[]
[]
[]
[]
[]
[]
[]
[]
[]
[]
[]
[]
[]
[]
[]
[]
[]
[]
[]
[]
[]
[]
[]
[]
[]
[]
[]
[]
[]
[]
["Je déclare que les volumes identifiés dans ce rapport sont encore en forêt ou, le cas échéant, que la vidange de ces secteurs est complété dans l’unité d’aménagement visée par cette déclaration pour l’année d’exploitation visée."]
[]
["Représentant du BGA :"]
[]
["Signature :",null,null,"Date :"]

{"sheet":"BGAD4","index":6,"n_rows":72,"n_cols":5,"rows_kept":72,"cut":false,"hidden":false,"merged":[[0,0,0,4],[71,4,71,5],[67,0,67,5]]}
["Déclaration de vidange des secteurs récoltés par BGAd ou PRAU"]
[]
["Année de récolte :","2019-2020"]
["Unité d'aménagement :"]
["Nom Du BGAd :"]
[]
[null,"(insérer des lignes au besoin)"]
["Numéro de secteur d'intervention \nou \nNom du chantier","Nom du BGA/PRAU détenteur du droit","Code d'essence","Qualité (pour les droits SQ/QI)","Volume estimé (m3)"]
[]
[]
[]
[]
[]
[]
[]
[]
[]
[]
[]
[]
[]
[]
[]
[]
[]
[]
[]
[]
[]
[]
[]
[]
[]
[]
[]
[]
[]
[]
[]
[]
[]
[]
[]
[]
[]
[]
[]
[]
[]
[]
[]
[]
[]
[]
[]
[]
[]
[]
[]
[]
[]
[]
[]
[]
[]
[]
[]
["Je déclare que les volumes identifiés dans ce rapport sont encore en forêt ou, le cas échéant, que la vidange de ces secteurs est complété dans l’unité d’aménagement visée par cette déclaration pour l’année d’exploitation visée."]
[]
["Représentant du BGA :"]
[]
["Signature :",null,null,"Date :"]

{"sheet":"BGAD5","index":7,"n_rows":72,"n_cols":5,"rows_kept":72,"cut":false,"hidden":false,"merged":[[0,0,0,4],[71,4,71,5],[67,0,67,5]]}
["Déclaration de vidange des secteurs récoltés par BGAd ou PRAU"]
[]
["Année de récolte :","2019-2020"]
["Unité d'aménagement :"]
["Nom Du BGAd :"]
[]
[null,"(insérer des lignes au besoin)"]
["Numéro de secteur d'intervention \nou \nNom du chantier","Nom du BGA/PRAU détenteur du droit","Code d'essence","Qualité (pour les droits SQ/QI)","Volume estimé (m3)"]
[]
[]
[]
[]
[]
[]
[]
[]
[]
[]
[]
[]
[]
[]
[]
[]
[]
[]
[]
[]
[]
[]
[]
[]
[]
[]
[]
[]
[]
[]
[]
[]
[]
[]
[]
[]
[]
[]
[]
[]
[]
[]
[]
[]
[]
[]
[]
[]
[]
[]
[]
[]
[]
[]
[]
[]
[]
[]
[]
["Je déclare que les volumes identifiés dans ce rapport sont encore en forêt ou, le cas échéant, que la vidange de ces secteurs est complété dans l’unité d’aménagement visée par cette déclaration pour l’année d’exploitation visée."]
[]
["Représentant du BGA :"]
[]
["Signature :",null,null,"Date :"]

{"sheet":"BGAD6","index":8,"n_rows":72,"n_cols":5,"rows_kept":72,"cut":false,"hidden":false,"merged":[[0,0,0,4],[71,4,71,5],[67,0,67,5]]}
["Déclaration de vidange des secteurs récoltés par BGAd ou PRAU"]
[]
["Année de récolte :","2019-2020"]
["Unité d'aménagement :"]
["Nom Du BGAd :"]
[]
[null,"(insérer des lignes au besoin)"]
["Numéro de secteur d'intervention \nou \nNom du chantier","Nom du BGA/PRAU détenteur du droit","Code d'essence","Qualité (pour les droits SQ/QI)","Volume estimé (m3)"]
[]
[]
[]
[]
[]
[]
[]
[]
[]
[]
[]
[]
[]
[]
[]
[]
[]
[]
[]
[]
[]
[]
[]
[]
[]
[]
[]
[]
[]
[]
[]
[]
[]
[]
[]
[]
[]
[]
[]
[]
[]
[]
[]
[]
[]
[]
[]
[]
[]
[]
[]
[]
[]
[]
[]
[]
[]
[]
[]
["Je déclare que les volumes identifiés dans ce rapport sont encore en forêt ou, le cas échéant, que la vidange de ces secteurs est complété dans l’unité d’aménagement visée par cette déclaration pour l’année d’exploitation visée."]
[]
["Représentant du BGA :"]
[]
["Signature :",null,null,"Date :"]

{"sheet":"BGAD7","index":9,"n_rows":72,"n_cols":5,"rows_kept":72,"cut":false,"hidden":false,"merged":[[0,0,0,4],[71,4,71,5],[67,0,67,5]]}
["Déclaration de vidange des secteurs récoltés par BGAd ou PRAU"]
[]
["Année de récolte :","2019-2020"]
["Unité d'aménagement :"]
["Nom Du BGAd :"]
[]
[null,"(insérer des lignes au besoin)"]
["Numéro de secteur d'intervention \nou \nNom du chantier","Nom du BGA/PRAU détenteur du droit","Code d'essence","Qualité (pour les droits SQ/QI)","Volume estimé (m3)"]
[]
[]
[]
[]
[]
[]
[]
[]
[]
[]
[]
[]
[]
[]
[]
[]
[]
[]
[]
[]
[]
[]
[]
[]
[]
[]
[]
[]
[]
[]
[]
[]
[]
[]
[]
[]
[]
[]
[]
[]
[]
[]
[]
[]
[]
[]
[]
[]
[]
[]
[]
[]
[]
[]
[]
[]
[]
[]
[]
["Je déclare que les volumes identifiés dans ce rapport sont encore en forêt ou, le cas échéant, que la vidange de ces secteurs est complété dans l’unité d’aménagement visée par cette déclaration pour l’année d’exploitation visée."]
[]
["Représentant du BGA :"]
[]
["Signature :",null,null,"Date :"]

{"sheet":"BGAD8","index":10,"n_rows":72,"n_cols":5,"rows_kept":72,"cut":false,"hidden":false,"merged":[[0,0,0,4],[71,4,71,5],[67,0,67,5]]}
["Déclaration de vidange des secteurs récoltés par BGAd ou PRAU"]
[]
["Année de récolte :","2019-2020"]
["Unité d'aménagement :"]
["Nom Du BGAd :"]
[]
[null,"(insérer des lignes au besoin)"]
["Numéro de secteur d'intervention \nou \nNom du chantier","Nom du BGA/PRAU détenteur du droit","Code d'essence","Qualité (pour les droits SQ/QI)","Volume estimé (m3)"]
[]
[]
[]
[]
[]
[]
[]
[]
[]
[]
[]
[]
[]
[]
[]
[]
[]
[]
[]
[]
[]
[]
[]
[]
[]
[]
[]
[]
[]
[]
[]
[]
[]
[]
[]
[]
[]
[]
[]
[]
[]
[]
[]
[]
[]
[]
[]
[]
[]
[]
[]
[]
[]
[]
[]
[]
[]
[]
[]
["Je déclare que les volumes identifiés dans ce rapport sont encore en forêt ou, le cas échéant, que la vidange de ces secteurs est complété dans l’unité d’aménagement visée par cette déclaration pour l’année d’exploitation visée."]
[]
["Représentant du BGA :"]
[]
["Signature :",null,null,"Date :"]

{"sheet":"BGAD9","index":11,"n_rows":72,"n_cols":5,"rows_kept":72,"cut":false,"hidden":false,"merged":[[0,0,0,4],[71,4,71,5],[67,0,67,5]]}
["Déclaration de vidange des secteurs récoltés par BGAd ou PRAU"]
[]
["Année de récolte :","2019-2020"]
["Unité d'aménagement :"]
["Nom Du BGAd :"]
[]
[null,"(insérer des lignes au besoin)"]
["Numéro de secteur d'intervention \nou \nNom du chantier","Nom du BGA/PRAU détenteur du droit","Code d'essence","Qualité (pour les droits SQ/QI)","Volume estimé (m3)"]
[]
[]
[]
[]
[]
[]
[]
[]
[]
[]
[]
[]
[]
[]
[]
[]
[]
[]
[]
[]
[]
[]
[]
[]
[]
[]
[]
[]
[]
[]
[]
[]
[]
[]
[]
[]
[]
[]
[]
[]
[]
[]
[]
[]
[]
[]
[]
[]
[]
[]
[]
[]
[]
[]
[]
[]
[]
[]
[]
["Je déclare que les volumes identifiés dans ce rapport sont encore en forêt ou, le cas échéant, que la vidange de ces secteurs est complété dans l’unité d’aménagement visée par cette déclaration pour l’année d’exploitation visée."]
[]
["Représentant du BGA :"]
[]
["Signature :",null,null,"Date :"]

{"sheet":"BGAD10","index":12,"n_rows":72,"n_cols":5,"rows_kept":72,"cut":false,"hidden":false,"merged":[[0,0,0,4],[71,4,71,5],[67,0,67,5]]}
["Déclaration de vidange des secteurs récoltés par BGAd ou PRAU"]
[]
["Année de récolte :","2019-2020"]
["Unité d'aménagement :"]
["Nom Du BGAd :"]
[]
[null,"(insérer des lignes au besoin)"]
["Numéro de secteur d'intervention \nou \nNom du chantier","Nom du BGA/PRAU détenteur du droit","Code d'essence","Qualité (pour les droits SQ/QI)","Volume estimé (m3)"]
[]
[]
[]
[]
[]
[]
[]
[]
[]
[]
[]
[]
[]
[]
[]
[]
[]
[]
[]
[]
[]
[]
[]
[]
[]
[]
[]
[]
[]
[]
[]
[]
[]
[]
[]
[]
[]
[]
[]
[]
[]
[]
[]
[]
[]
[]
[]
[]
[]
[]
[]
[]
[]
[]
[]
[]
[]
[]
[]
["Je déclare que les volumes identifiés dans ce rapport sont encore en forêt ou, le cas échéant, que la vidange de ces secteurs est complété dans l’unité d’aménagement visée par cette déclaration pour l’année d’exploitation visée."]
[]
["Représentant du BGA :"]
[]
["Signature :",null,null,"Date :"]

{"sheet":"Liste","index":13,"n_rows":347,"n_cols":6,"rows_kept":347,"cut":false,"hidden":true,"merged":[]}
["Année","Code d'essence","Nom essence","Essence","Unite d'amenagement","Qualité"]
["2019-2020","010","Épinette (autre que Norvège)",{"$f":"IF(B2<>\"\",CONCATENATE(B2,\"_\",C2),\"\")","v":"010_Épinette (autre que Norvège)"},"01171","S/O"]
["2020-2021","014","Épinette de Norvège",{"$f":"IF(B3<>\"\",CONCATENATE(B3,\"_\",C3),\"\")","v":"014_Épinette de Norvège"},"01272","A"]
["2021-2022","030","Mélèze laricin","030_Mélèze laricin","02371","B"]
["2022-2023","043","Pin gris et sylvestre","043_Pin gris et sylvestre","02471","C"]
["2023-2024","060","Sapin baumier","060_Sapin baumier","02571","D"]
["2024-2025","190","Peuplier (autre que Baumier)","190_Peuplier (autre que Baumier)","02651","E"]
["2025-2026","191","Peuplier baumier","191_Peuplier baumier","02661","F"]
["2026-2027","105","Bouleau blanc ","105_Bouleau blanc ","02662","G"]
["2027-2028","104","Bouleau jaune","104_Bouleau jaune","02663","H"]
["2028-2029","132","Érable à sucre","132_Érable à sucre","02664","I"]
["2029-2030","133","Érable rouge","133_Érable rouge","02665"]
[null,"135","Érables - Autres ","135_Érables - Autres ","02666"]
[null,"120","Chêne ","120_Chêne ","02751"]
[null,"141","Frêne d’Amérique (blanc)","141_Frêne d’Amérique (blanc)","03153"]
[null,"142","Frêne noir","142_Frêne noir","03171"]
[null,"150","Hêtre","150_Hêtre","03351"]
[null,"160","Noyer","160_Noyer","03451"]
[null,"165","Caryer","165_Caryer","03571"]
[null,"170","Orme","170_Orme","04151"]
[null,"180","Ostryer de Virginie","180_Ostryer de Virginie","04251"]
[null,"110","Cerisier tardif","110_Cerisier tardif","04351"]
[null,"210","Tilleul d’Amérique","210_Tilleul d’Amérique","04352"]
[null,"041","Pin blanc","041_Pin blanc","05151"]
[null,"042","Pin rouge","042_Pin rouge","06151"]
[null,"050","Pruche de l’Est","050_Pruche de l’Est","06271"]
[null,"080","Thuya occidental","080_Thuya occidental","06452"]
[null,null,null,"","06471"]
[null,null,null,"","07151"]
[null,null,null,"","07152"]
[null,null,null,"","07251"]
[null,null,null,"","07351"]
[null,null,null,"","07352"]
[null,null,null,"","07451"]
[null,null,null,"","08151"]
[null,null,null,"","08152"]
[null,null,null,"","08251"]
[null,null,null,"","08351"]
[null,null,null,"","08451"]
[null,null,null,"","08462"]
[null,null,null,"","08551"]
[null,null,null,"","08562"]
[null,null,null,"","08651"]
[null,null,null,"","08652"]
[null,null,null,"","08663"]
[null,null,null,"","08664"]
[null,null,null,"","08665"]
[null,null,null,"","08666"]
[null,null,null,"","08751"]
[null,null,null,"","08762"]
[null,null,null,"","08763"]
[null,null,null,"","08764"]
[null,null,null,"","09351"]
[null,null,null,"","09352"]
[null,null,null,"","09471"]
[null,null,null,"","09551"]
[null,null,null,"","09751"]
[null,null,null,"","11161"]
[null,null,null,"","11262"]
[null,null,null,"","11263"]
[null,null,null,""]
[null,null,null,""]
[null,null,null,""]
[null,null,null,""]
[null,null,null,""]
[null,null,null,""]
[null,null,null,{"$f":"IF(B67<>\"\",CONCATENATE(B67,\"_\",C67),\"\")","v":""}]
[null,null,null,""]
[null,null,null,""]
[null,null,null,""]
[null,null,null,""]
[null,null,null,""]
[null,null,null,""]
[null,null,null,""]
[null,null,null,""]
[null,null,null,""]
[null,null,null,""]
[null,null,null,""]
[null,null,null,""]
[null,null,null,""]
[null,null,null,""]
[null,null,null,""]
[null,null,null,""]
[null,null,null,""]
[null,null,null,""]
[null,null,null,""]
[null,null,null,""]
[null,null,null,""]
[null,null,null,""]
[null,null,null,""]
[null,null,null,""]
[null,null,null,""]
[null,null,null,""]
[null,null,null,""]
[null,null,null,""]
[null,null,null,""]
[null,null,null,""]
[null,null,null,""]
[null,null,null,""]
[null,null,null,""]
[null,null,null,""]
[null,null,null,""]
[null,null,null,""]
[null,null,null,""]
[null,null,null,""]
[null,null,null,""]
[null,null,null,""]
[null,null,null,""]
[null,null,null,""]
[null,null,null,""]
[null,null,null,""]
[null,null,null,""]
[null,null,null,""]
[null,null,null,""]
[null,null,null,""]
[null,null,null,""]
[null,null,null,""]
[null,null,null,""]
[null,null,null,""]
[null,null,null,""]
[null,null,null,""]
[null,null,null,""]
[null,null,null,""]
[null,null,null,""]
[null,null,null,""]
[null,null,null,""]
[null,null,null,""]
[null,null,null,""]
[null,null,null,""]
[null,null,null,""]
[null,null,null,{"$f":"IF(B131<>\"\",CONCATENATE(B131,\"_\",C131),\"\")","v":""}]
[null,null,null,""]
[null,null,null,""]
[null,null,null,""]
[null,null,null,""]
[null,null,null,""]
[null,null,null,""]
[null,null,null,""]
[null,null,null,""]
[null,null,null,""]
[null,null,null,""]
[null,null,null,""]
[null,null,null,""]
[null,null,null,""]
[null,null,null,""]
[null,null,null,""]
[null,null,null,""]
[null,null,null,""]
[null,null,null,""]
[null,null,null,""]
[null,null,null,""]
[null,null,null,""]
[null,null,null,""]
[null,null,null,""]
[null,null,null,""]
[null,null,null,""]
[null,null,null,""]
[null,null,null,""]
[null,null,null,""]
[null,null,null,""]
[null,null,null,""]
[null,null,null,""]
[null,null,null,""]
[null,null,null,""]
[null,null,null,""]
[null,null,null,""]
[null,null,null,""]
[null,null,null,""]
[null,null,null,""]
[null,null,null,""]
[null,null,null,""]
[null,null,null,""]
[null,null,null,""]
[null,null,null,""]
[null,null,null,""]
[null,null,null,""]
[null,null,null,""]
[null,null,null,""]
[null,null,null,""]
[null,null,null,""]
[null,null,null,""]
[null,null,null,""]
[null,null,null,""]
[null,null,null,""]
[null,null,null,""]
[null,null,null,""]
[null,null,null,""]
[null,null,null,""]
[null,null,null,""]
[null,null,null,""]
[null,null,null,""]
[null,null,null,""]
[null,null,null,""]
[null,null,null,""]
[null,null,null,{"$f":"IF(B195<>\"\",CONCATENATE(B195,\"_\",C195),\"\")","v":""}]
[null,null,null,""]
[null,null,null,""]
[null,null,null,""]
[null,null,null,""]
[null,null,null,""]
[null,null,null,""]
[null,null,null,""]
[null,null,null,""]
[null,null,null,""]
[null,null,null,""]
[null,null,null,""]
[null,null,null,""]
[null,null,null,""]
[null,null,null,""]
[null,null,null,""]
[null,null,null,""]
[null,null,null,""]
[null,null,null,""]
[null,null,null,""]
[null,null,null,""]
[null,null,null,""]
[null,null,null,""]
[null,null,null,""]
[null,null,null,""]
[null,null,null,""]
[null,null,null,""]
[null,null,null,""]
[null,null,null,""]
[null,null,null,""]
[null,null,null,""]
[null,null,null,""]
[null,null,null,""]
[null,null,null,""]
[null,null,null,""]
[null,null,null,""]
[null,null,null,""]
[null,null,null,""]
[null,null,null,""]
[null,null,null,""]
[null,null,null,""]
[null,null,null,""]
[null,null,null,""]
[null,null,null,""]
[null,null,null,""]
[null,null,null,""]
[null,null,null,""]
[null,null,null,""]
[null,null,null,""]
[null,null,null,""]
[null,null,null,""]
[null,null,null,""]
[null,null,null,""]
[null,null,null,""]
[null,null,null,""]
[null,null,null,""]
[null,null,null,""]
[null,null,null,""]
[null,null,null,""]
[null,null,null,""]
[null,null,null,""]
[null,null,null,""]
[null,null,null,""]
[null,null,null,""]
[null,null,null,{"$f":"IF(B259<>\"\",CONCATENATE(B259,\"_\",C259),\"\")","v":""}]
[null,null,null,""]
[null,null,null,""]
[null,null,null,""]
[null,null,null,""]
[null,null,null,""]
[null,null,null,""]
[null,null,null,""]
[null,null,null,""]
[null,null,null,""]
[null,null,null,""]
[null,null,null,""]
[null,null,null,""]
[null,null,null,""]
[null,null,null,""]
[null,null,null,""]
[null,null,null,""]
[null,null,null,""]
[null,null,null,""]
[null,null,null,""]
[null,null,null,""]
[null,null,null,""]
[null,null,null,""]
[null,null,null,""]
[null,null,null,""]
[null,null,null,""]
[null,null,null,""]
[null,null,null,""]
[null,null,null,""]
[null,null,null,""]
[null,null,null,""]
[null,null,null,""]
[null,null,null,""]
[null,null,null,""]
[null,null,null,""]
[null,null,null,""]
[null,null,null,""]
[null,null,null,""]
[null,null,null,""]
[null,null,null,""]
[null,null,null,""]
[null,null,null,""]
[null,null,null,""]
[null,null,null,""]
[null,null,null,""]
[null,null,null,""]
[null,null,null,""]
[null,null,null,""]
[null,null,null,""]
[null,null,null,""]
[null,null,null,""]
[null,null,null,""]
[null,null,null,""]
[null,null,null,""]
[null,null,null,""]
[null,null,null,""]
[null,null,null,""]
[null,null,null,""]
[null,null,null,""]
[null,null,null,""]
[null,null,null,""]
[null,null,null,""]
[null,null,null,""]
[null,null,null,""]
[null,null,null,{"$f":"IF(B323<>\"\",CONCATENATE(B323,\"_\",C323),\"\")","v":""}]
[null,null,null,""]
[null,null,null,""]
[null,null,null,""]
[null,null,null,""]
[null,null,null,""]
[null,null,null,""]
[null,null,null,""]
[null,null,null,""]
[null,null,null,""]
[null,null,null,""]
[null,null,null,""]
[null,null,null,""]
[null,null,null,""]
[null,null,null,""]
[null,null,null,""]
[null,null,null,""]
[null,null,null,""]
[null,null,null,""]
[null,null,null,""]
[null,null,null,""]
[null,null,null,""]
[null,null,null,""]
[null,null,null,""]
[null,null,null,""]